[Event "Early-Titled-Tuesday-Blitz-February-20-2024"]
[Site "Chess.com"]
[Date "2024.02.20"]
[Round "6"]
[White "ajedrezsinlimites"]
[Black "Schattman"]
[Result "1-0"]
[WhiteElo "2636"]
[BlackElo "2441"]
[TimeControl "180+1"]
[EndTime "9:08:27 PST"]
[Termination "ajedrezsinlimites won on time"]

1. e4 {[%clk 0:02:56.7]} 1... c5 {[%clk 0:02:58.1]} 2. Nf3 {[%clk 0:02:56.5]}
2... d6 {[%clk 0:02:58.3]} 3. d4 {[%clk 0:02:57.2]} 3... cxd4 {[%clk 0:02:59.1]}
4. Nxd4 {[%clk 0:02:57.9]} 4... Nf6 {[%clk 0:02:59.6]} 5. Nc3 {[%clk 0:02:58.5]}
5... a6 {[%clk 0:03:00]} 6. h4 {[%clk 0:02:58.9]} 6... e5 {[%clk 0:02:58.2]} 7.
Nb3 {[%clk 0:02:59.4]} 7... h6 {[%clk 0:02:54]} 8. Bc4 {[%clk 0:02:58.7]} 8...
Qc7 {[%clk 0:02:52.2]} 9. Bd5 {[%clk 0:02:56.7]} 9... Bg4 {[%clk 0:02:42.7]} 10.
f3 {[%clk 0:02:54.3]} 10... Be6 {[%clk 0:02:42.5]} 11. Bxe6 {[%clk 0:02:53.8]}
11... fxe6 {[%clk 0:02:42.4]} 12. Qe2 {[%clk 0:02:49.4]} 12... Be7 {[%clk
0:02:38.7]} 13. Bd2 {[%clk 0:02:48.6]} 13... O-O {[%clk 0:02:38.6]} 14. O-O-O
{[%clk 0:02:49.3]} 14... b5 {[%clk 0:02:34.7]} 15. g4 {[%clk 0:02:47.6]} 15...
b4 {[%clk 0:02:22]} 16. Nb1 {[%clk 0:02:45.9]} 16... a5 {[%clk 0:02:16.8]} 17.
g5 {[%clk 0:02:45.4]} 17... Nh5 {[%clk 0:02:15.4]} 18. gxh6 {[%clk 0:02:45.2]}
18... a4 {[%clk 0:02:15.3]} 19. Na1 {[%clk 0:02:40.3]} 19... b3 {[%clk
0:01:59.5]} 20. axb3 {[%clk 0:02:38.1]} 20... d5 {[%clk 0:01:45.6]} 21. hxg7
{[%clk 0:02:35.4]} 21... Rf7 {[%clk 0:01:40.3]} 22. f4 {[%clk 0:02:35.2]} 22...
Ng3 {[%clk 0:01:31]} 23. Qg4 {[%clk 0:02:32.2]} 23... Nxh1 {[%clk 0:01:28.4]}
24. Rxh1 {[%clk 0:02:32.1]} 24... Nd7 {[%clk 0:01:21.1]} 25. h5 {[%clk
0:02:30.7]} 25... Rc8 {[%clk 0:01:05.6]} 26. h6 {[%clk 0:02:29.3]} 26... Kh7
{[%clk 0:01:00]} 27. Rg1 {[%clk 0:02:22.1]} 27... Nf6 {[%clk 0:00:52.6]} 28.
Qxe6 {[%clk 0:02:12.4]} 28... Bc5 {[%clk 0:00:36.3]} 29. fxe5 {[%clk 0:02:00]}
29... Bxg1 {[%clk 0:00:25.1]} 30. exf6 {[%clk 0:01:59.4]} 30... Qd7 {[%clk
0:00:19.4]} 31. Qxd7 {[%clk 0:01:51.9]} 31... Rxd7 {[%clk 0:00:18.7]} 32. e5
{[%clk 0:01:52.6]} 32... Bd4 {[%clk 0:00:13.1]} 33. e6 {[%clk 0:01:51.6]} 33...
Rd6 {[%clk 0:00:11.8]} 34. f7 {[%clk 0:01:49.8]} 34... Bxg7 {[%clk 0:00:11.8]}
35. hxg7 {[%clk 0:01:45.5]} 35... Kxg7 {[%clk 0:00:12.1]} 36. Bc3+ {[%clk
0:01:38.2]} 36... Kg6 {[%clk 0:00:11]} 37. Bb4 {[%clk 0:01:37]} 37... Rxe6
{[%clk 0:00:10.2]} 38. f8=Q {[%clk 0:01:37.4]} 38... Rxf8 {[%clk 0:00:10.3]} 39.
Bxf8 {[%clk 0:01:37]} 39... Re1+ {[%clk 0:00:06.9]} 40. Kd2 {[%clk 0:01:37.1]}
40... Rxb1 {[%clk 0:00:07.2]} 41. bxa4 {[%clk 0:01:36]} 41... Rxa1 {[%clk
0:00:07.3]} 42. b3 {[%clk 0:01:36.4]} 42... Kf5 {[%clk 0:00:07.4]} 43. Kd3
{[%clk 0:01:36.6]} 43... Ke6 {[%clk 0:00:07.6]} 44. Bg7 {[%clk 0:01:36]} 44...
Rd1+ {[%clk 0:00:06.6]} 45. Kc3 {[%clk 0:01:36.3]} 45... Rf1 {[%clk 0:00:06.2]}
46. Bd4 {[%clk 0:01:36.3]} 46... Rf3+ {[%clk 0:00:05.9]} 47. Kb4 {[%clk
0:01:35.5]} 47... Rf7 {[%clk 0:00:04.2]} 48. a5 {[%clk 0:01:34.7]} 48... Rb7+
{[%clk 0:00:04.6]} 49. Bb6 {[%clk 0:01:34]} 49... d4 {[%clk 0:00:02.7]} 50. Kc4
{[%clk 0:01:33.8]} 50... Kd7 {[%clk 0:00:01.9]} 51. Bxd4 {[%clk 0:01:32.5]}
51... Kc6 {[%clk 0:00:02.8]} 52. b4 {[%clk 0:01:32]} 52... Rc7 {[%clk
0:00:02.5]} 53. Bc5 {[%clk 0:01:32.3]} 53... Rb7 {[%clk 0:00:01.8]} 54. c3
{[%clk 0:01:31]} 54... Rb5 {[%clk 0:00:01.9]} 55. a6 {[%clk 0:01:30.3]} 55...
Rb8 {[%clk 0:00:02]} 56. a7 {[%clk 0:01:27.2]} 1-0

[Event "Early-Titled-Tuesday-Blitz-February-20-2024"]
[Site "Chess.com"]
[Date "2024.02.20"]
[Round "6"]
[White "LionTheLeon_06"]
[Black "ChessQueen"]
[Result "0-1"]
[WhiteElo "2875"]
[BlackElo "2741"]
[TimeControl "180+1"]
[EndTime "9:08:36 PST"]
[Termination "ChessQueen won by checkmate"]

1. c4 {[%clk 0:03:00.9]} 1... f5 {[%clk 0:02:59.3]} 2. b3 {[%clk 0:03:00.5]}
2... Nf6 {[%clk 0:02:59.4]} 3. Bb2 {[%clk 0:03:01.1]} 3... g6 {[%clk 0:02:59.8]}
4. g3 {[%clk 0:03:00.6]} 4... Bg7 {[%clk 0:03:00.2]} 5. Bg2 {[%clk 0:03:01.2]}
5... d6 {[%clk 0:03:00.5]} 6. Nf3 {[%clk 0:03:01.8]} 6... e5 {[%clk 0:02:59.3]}
7. d4 {[%clk 0:02:59.7]} 7... e4 {[%clk 0:02:58.3]} 8. Nfd2 {[%clk 0:03:00.4]}
8... Nc6 {[%clk 0:02:52.7]} 9. Na3 {[%clk 0:02:38.8]} 9... Qe7 {[%clk
0:02:47.8]} 10. Nc2 {[%clk 0:02:38.1]} 10... d5 {[%clk 0:02:40.8]} 11. O-O
{[%clk 0:02:19.8]} 11... Be6 {[%clk 0:02:38.1]} 12. Ne3 {[%clk 0:02:11]} 12...
O-O-O {[%clk 0:02:27.8]} 13. Rc1 {[%clk 0:02:07.4]} 13... g5 {[%clk 0:02:24.5]}
14. cxd5 {[%clk 0:02:05.2]} 14... Nxd5 {[%clk 0:02:24.6]} 15. Rc5 {[%clk
0:01:56.2]} 15... Nxe3 {[%clk 0:02:16.7]} 16. fxe3 {[%clk 0:01:55.9]} 16... Qxc5
{[%clk 0:02:01.1]} 17. dxc5 {[%clk 0:01:54.1]} 17... Bxb2 {[%clk 0:02:02]} 18.
Qc2 {[%clk 0:01:50.6]} 18... Bg7 {[%clk 0:02:01.3]} 19. a3 {[%clk 0:01:49.5]}
19... h5 {[%clk 0:01:58.7]} 20. b4 {[%clk 0:01:49]} 20... g4 {[%clk 0:01:55.2]}
21. b5 {[%clk 0:01:42.3]} 21... Ne5 {[%clk 0:01:50.2]} 22. b6 {[%clk 0:01:34.2]}
22... a6 {[%clk 0:01:45.7]} 23. Nxe4 {[%clk 0:00:50.6]} 23... fxe4 {[%clk
0:01:45.1]} 24. Qxe4 {[%clk 0:00:51.5]} 24... c6 {[%clk 0:01:41]} 25. Qf4 {[%clk
0:00:42.8]} 25... Rd7 {[%clk 0:01:24.7]} 26. Qg5 {[%clk 0:00:40.7]} 26... Nc4
{[%clk 0:01:16.5]} 27. Qg6 {[%clk 0:00:34.4]} 27... Re7 {[%clk 0:01:08.2]} 28.
Qg5 {[%clk 0:00:20]} 28... Rhe8 {[%clk 0:01:03.8]} 29. Be4 {[%clk 0:00:17.6]}
29... Nxe3 {[%clk 0:00:58.5]} 30. Qxe3 {[%clk 0:00:12.7]} 30... Bd7 {[%clk
0:00:58.9]} 31. Qg5 {[%clk 0:00:13]} 31... Bd4+ {[%clk 0:00:50.4]} 32. e3 {[%clk
0:00:11.8]} 32... Re5 {[%clk 0:00:48]} 33. Qh6 {[%clk 0:00:09.4]} 33... Bxc5
{[%clk 0:00:42]} 34. Rf7 {[%clk 0:00:02.7]} 34... Rxe4 {[%clk 0:00:40]} 35. Qh7
{[%clk 0:00:03.1]} 35... Rxe3 {[%clk 0:00:36.4]} 36. Rxd7 {[%clk 0:00:02]} 36...
Re1+ {[%clk 0:00:35.6]} 37. Kg2 {[%clk 0:00:02.7]} 37... Rg1# {[%clk 0:00:35.1]}
0-1

[Event "Early-Titled-Tuesday-Blitz-February-20-2024"]
[Site "Chess.com"]
[Date "2024.02.20"]
[Round "6"]
[White "manitodeplomo"]
[Black "Bkmzzzzz"]
[Result "1-0"]
[WhiteElo "2626"]
[BlackElo "2410"]
[TimeControl "180+1"]
[EndTime "9:08:41 PST"]
[Termination "manitodeplomo won by resignation"]

1. d4 {[%clk 0:03:00.9]} 1... d5 {[%clk 0:02:56.2]} 2. c4 {[%clk 0:03:00.3]}
2... dxc4 {[%clk 0:02:57.1]} 3. Nf3 {[%clk 0:02:59.4]} 3... a6 {[%clk
0:02:57.5]} 4. e3 {[%clk 0:02:51.3]} 4... Nf6 {[%clk 0:02:57.7]} 5. Bxc4 {[%clk
0:02:50.4]} 5... e6 {[%clk 0:02:58.3]} 6. Nc3 {[%clk 0:02:49.8]} 6... c5 {[%clk
0:02:57.9]} 7. O-O {[%clk 0:02:48.9]} 7... Be7 {[%clk 0:02:54.6]} 8. dxc5 {[%clk
0:02:43.6]} 8... Bxc5 {[%clk 0:02:53.2]} 9. Qe2 {[%clk 0:02:43]} 9... O-O {[%clk
0:02:52]} 10. e4 {[%clk 0:02:43.3]} 10... b5 {[%clk 0:02:45.5]} 11. Bd3 {[%clk
0:02:42.7]} 11... Nc6 {[%clk 0:02:44.6]} 12. e5 {[%clk 0:02:42.1]} 12... Nd7
{[%clk 0:02:36.9]} 13. Qe4 {[%clk 0:02:35.4]} 13... g6 {[%clk 0:02:35.7]} 14.
Qxc6 {[%clk 0:02:35]} 14... Rb8 {[%clk 0:02:25.2]} 15. Bg5 {[%clk 0:02:18.6]}
15... Qa5 {[%clk 0:02:17.2]} 16. Ne4 {[%clk 0:02:11.2]} 16... Ba7 {[%clk
0:02:11.4]} 17. Rfc1 {[%clk 0:02:03.9]} 17... b4 {[%clk 0:02:09.9]} 18. Nf6+
{[%clk 0:01:57.9]} 18... Nxf6 {[%clk 0:02:09.3]} 19. Bxf6 {[%clk 0:01:58.8]}
19... Bb7 {[%clk 0:02:09.2]} 20. Qc7 {[%clk 0:01:58.3]} 20... Bb6 {[%clk
0:02:03]} 21. Qd6 {[%clk 0:01:57.3]} 21... Rbd8 {[%clk 0:01:54.8]} 22. Bxd8
{[%clk 0:01:56.1]} 22... Rxd8 {[%clk 0:01:55.7]} 23. Qe7 {[%clk 0:01:55.4]}
23... Rxd3 {[%clk 0:01:56.3]} 24. Ng5 {[%clk 0:01:48.4]} 24... Bxf2+ {[%clk
0:01:16.9]} 25. Kxf2 {[%clk 0:01:09.1]} 25... Rd2+ {[%clk 0:01:14.6]} 26. Ke1
{[%clk 0:01:01.4]} 26... Qxe5+ {[%clk 0:01:07]} 27. Kxd2 {[%clk 0:01:01]} 27...
Qf4+ {[%clk 0:01:05.7]} 28. Ke2 {[%clk 0:01:00.3]} 28... Qe5+ {[%clk 0:01:03.3]}
29. Kf2 {[%clk 0:00:58.4]} 29... Qd4+ {[%clk 0:01:03.3]} 30. Kg3 {[%clk
0:00:56.6]} 30... Qe5+ {[%clk 0:01:02.8]} 31. Kh3 {[%clk 0:00:55.3]} 31... Qe3+
{[%clk 0:00:36.9]} 32. g3 {[%clk 0:00:43.1]} 32... Bg2+ {[%clk 0:00:26.1]} 33.
Kxg2 {[%clk 0:00:42.5]} 33... Qe2+ {[%clk 0:00:26.6]} 34. Kg1 {[%clk 0:00:40.6]}
34... Qe3+ {[%clk 0:00:26.9]} 35. Kf1 {[%clk 0:00:40.5]} 35... Qd3+ {[%clk
0:00:27.4]} 36. Kf2 {[%clk 0:00:38.6]} 36... Qd2+ {[%clk 0:00:28.1]} 37. Kf3
{[%clk 0:00:37.7]} 37... Qd3+ {[%clk 0:00:28.2]} 38. Kg4 {[%clk 0:00:33.4]}
38... Qe2+ {[%clk 0:00:25.5]} 39. Nf3 {[%clk 0:00:28.3]} 39... Qe4+ {[%clk
0:00:24.6]} 40. Kh3 {[%clk 0:00:27.7]} 40... Qxf3 {[%clk 0:00:24.4]} 41. Rf1
{[%clk 0:00:26.9]} 41... Qh5+ {[%clk 0:00:23]} 42. Kg2 {[%clk 0:00:27]} 42...
Qe2+ {[%clk 0:00:23.8]} 43. Rf2 {[%clk 0:00:26.3]} 43... Qe4+ {[%clk 0:00:24.4]}
44. Kg1 {[%clk 0:00:26.5]} 1-0

[Event "Early-Titled-Tuesday-Blitz-February-20-2024"]
[Site "Chess.com"]
[Date "2024.02.20"]
[Round "6"]
[White "Capablanca_Oujda_2021"]
[Black "Rurep26"]
[Result "0-1"]
[WhiteElo "2527"]
[BlackElo "2731"]
[TimeControl "180+1"]
[EndTime "9:08:45 PST"]
[Termination "Rurep26 won by resignation"]

1. b3 {[%clk 0:03:00.9]} 1... d5 {[%clk 0:02:58.5]} 2. Bb2 {[%clk 0:03:01]} 2...
Nf6 {[%clk 0:02:55.4]} 3. g3 {[%clk 0:03:01.5]} 3... c6 {[%clk 0:02:55.1]} 4.
Bg2 {[%clk 0:03:02.1]} 4... Bf5 {[%clk 0:02:55.5]} 5. e3 {[%clk 0:03:02.5]} 5...
e6 {[%clk 0:02:55.4]} 6. Ne2 {[%clk 0:03:03.1]} 6... Bd6 {[%clk 0:02:54]} 7. O-O
{[%clk 0:03:03.6]} 7... O-O {[%clk 0:02:54.4]} 8. d4 {[%clk 0:03:04.2]} 8... h6
{[%clk 0:02:54.4]} 9. Nd2 {[%clk 0:03:04.5]} 9... a5 {[%clk 0:02:53.2]} 10. c4
{[%clk 0:03:04.9]} 10... Na6 {[%clk 0:02:51]} 11. a3 {[%clk 0:03:02.2]} 11...
Bh7 {[%clk 0:02:48.8]} 12. Nc3 {[%clk 0:02:57.4]} 12... Nc7 {[%clk 0:02:41.3]}
13. e4 {[%clk 0:02:52.9]} 13... dxe4 {[%clk 0:02:38.3]} 14. Ndxe4 {[%clk
0:02:53.8]} 14... Be7 {[%clk 0:02:38.1]} 15. Qd2 {[%clk 0:02:45.5]} 15... Nce8
{[%clk 0:02:35.2]} 16. Rad1 {[%clk 0:02:41.9]} 16... Nxe4 {[%clk 0:02:34.6]} 17.
Nxe4 {[%clk 0:02:40.3]} 17... Nf6 {[%clk 0:02:34.9]} 18. Nxf6+ {[%clk
0:02:13.5]} 18... Bxf6 {[%clk 0:02:34.2]} 19. d5 {[%clk 0:02:14.2]} 19... cxd5
{[%clk 0:02:29]} 20. cxd5 {[%clk 0:02:04.2]} 20... exd5 {[%clk 0:02:16.1]} 21.
Bxf6 {[%clk 0:02:01.8]} 21... Qxf6 {[%clk 0:02:17]} 22. Qxd5 {[%clk 0:02:01.2]}
22... Qb2 {[%clk 0:01:46.9]} 23. Qxb7 {[%clk 0:01:34.5]} 23... Rab8 {[%clk
0:01:44.5]} 24. Qc7 {[%clk 0:01:22.5]} 24... Rxb3 {[%clk 0:01:27.3]} 25. Bd5
{[%clk 0:01:12.2]} 25... Rd3 {[%clk 0:00:54]} 26. Rxd3 {[%clk 0:00:46.8]} 26...
Bxd3 {[%clk 0:00:54.9]} 27. Rd1 {[%clk 0:00:44.7]} 27... Qxa3 {[%clk 0:00:47.2]}
28. Re1 {[%clk 0:00:27.6]} 28... Qb4 {[%clk 0:00:37.4]} 29. Re7 {[%clk
0:00:22.7]} 29... Qb1+ {[%clk 0:00:36.4]} 30. Kg2 {[%clk 0:00:20.2]} 30... Bf1+
{[%clk 0:00:24.8]} 31. Kf3 {[%clk 0:00:18.6]} 31... Qd3+ {[%clk 0:00:25.2]} 32.
Kf4 {[%clk 0:00:06]} 32... Qxd5 {[%clk 0:00:23.3]} 33. Qxa5 {[%clk 0:00:04.3]}
33... Qxa5 {[%clk 0:00:22.6]} 0-1

[Event "Early-Titled-Tuesday-Blitz-February-20-2024"]
[Site "Chess.com"]
[Date "2024.02.20"]
[Round "6"]
[White "chess94cu"]
[Black "dosto07"]
[Result "1-0"]
[WhiteElo "2661"]
[BlackElo "2494"]
[TimeControl "180+1"]
[EndTime "9:08:45 PST"]
[Termination "chess94cu won on time"]

1. Nf3 {[%clk 0:03:00.9]} 1... d5 {[%clk 0:02:59.5]} 2. c4 {[%clk 0:03:00.7]}
2... d4 {[%clk 0:02:59.3]} 3. e3 {[%clk 0:03:01]} 3... Nc6 {[%clk 0:02:59.2]} 4.
b4 {[%clk 0:03:00.2]} 4... dxe3 {[%clk 0:02:55.4]} 5. fxe3 {[%clk 0:03:01.1]}
5... Nxb4 {[%clk 0:02:55.6]} 6. d4 {[%clk 0:02:57.2]} 6... e6 {[%clk 0:02:54.1]}
7. a3 {[%clk 0:02:56.5]} 7... Nc6 {[%clk 0:02:54.2]} 8. Nc3 {[%clk 0:02:56.3]}
8... g6 {[%clk 0:02:53]} 9. Be2 {[%clk 0:02:54.8]} 9... Bg7 {[%clk 0:02:53]} 10.
O-O {[%clk 0:02:54.5]} 10... Nge7 {[%clk 0:02:48.6]} 11. Rb1 {[%clk 0:02:44.9]}
11... O-O {[%clk 0:02:47.2]} 12. Bd3 {[%clk 0:02:40.1]} 12... b6 {[%clk
0:02:45.8]} 13. Qe2 {[%clk 0:02:40.1]} 13... Bb7 {[%clk 0:02:43.3]} 14. Bb2
{[%clk 0:02:36]} 14... Qd7 {[%clk 0:02:36.1]} 15. Rbd1 {[%clk 0:02:36.4]} 15...
Rad8 {[%clk 0:02:30.7]} 16. Kh1 {[%clk 0:02:31.6]} 16... Qc8 {[%clk 0:02:28.6]}
17. Bc2 {[%clk 0:02:27.9]} 17... Na5 {[%clk 0:02:27.3]} 18. Ne4 {[%clk
0:02:07.2]} 18... Ba6 {[%clk 0:02:18.9]} 19. Nfd2 {[%clk 0:02:06.8]} 19... Nf5
{[%clk 0:02:12]} 20. g4 {[%clk 0:01:54.5]} 20... Nd6 {[%clk 0:02:10.3]} 21. Nf6+
{[%clk 0:01:54.3]} 21... Kh8 {[%clk 0:01:47.5]} 22. Bd3 {[%clk 0:01:53.3]} 22...
c5 {[%clk 0:01:40.4]} 23. Rc1 {[%clk 0:01:31.2]} 23... Ne8 {[%clk 0:01:30.9]}
24. Nde4 {[%clk 0:01:28.6]} 24... Nxf6 {[%clk 0:01:28.5]} 25. Nxf6 {[%clk
0:01:29.5]} 25... Bb7+ {[%clk 0:01:17.3]} 26. Kg1 {[%clk 0:01:22.7]} 26... Qc6
{[%clk 0:01:15]} 27. d5 {[%clk 0:01:21.6]} 27... exd5 {[%clk 0:01:11.4]} 28.
cxd5 {[%clk 0:01:21.7]} 28... Qd6 {[%clk 0:01:04.7]} 29. e4 {[%clk 0:01:19.6]}
29... c4 {[%clk 0:00:59.5]} 30. Bb1 {[%clk 0:01:08.5]} 30... Qc5+ {[%clk
0:00:57.6]} 31. Kh1 {[%clk 0:01:04.7]} 31... Rde8 {[%clk 0:00:54]} 32. Qg2
{[%clk 0:00:52]} 32... Qe3 {[%clk 0:00:36.9]} 33. Rf3 {[%clk 0:00:48.6]} 33...
Qg5 {[%clk 0:00:32.8]} 34. Rcf1 {[%clk 0:00:49]} 34... Re5 {[%clk 0:00:15]} 35.
Nd7 {[%clk 0:00:47.5]} 35... Rfe8 {[%clk 0:00:08.3]} 36. Rxf7 {[%clk 0:00:43.8]}
36... R5e7 {[%clk 0:00:04.6]} 37. Bxg7+ {[%clk 0:00:42.8]} 37... Kg8 {[%clk
0:00:04.7]} 38. Bf6 {[%clk 0:00:36.5]} 38... Rxf7 {[%clk 0:00:02.3]} 39. Bxg5
{[%clk 0:00:36.8]} 39... Rxf1+ {[%clk 0:00:01.8]} 40. Qxf1 {[%clk 0:00:36.5]}
1-0

[Event "Early-Titled-Tuesday-Blitz-February-20-2024"]
[Site "Chess.com"]
[Date "2024.02.20"]
[Round "6"]
[White "fabianvivasz"]
[Black "jaskol95"]
[Result "0-1"]
[WhiteElo "2383"]
[BlackElo "2580"]
[TimeControl "180+1"]
[EndTime "9:08:45 PST"]
[Termination "jaskol95 won by resignation"]

1. e4 {[%clk 0:02:57.3]} 1... d5 {[%clk 0:03:00.1]} 2. exd5 {[%clk 0:02:58.2]}
2... Nf6 {[%clk 0:03:00.4]} 3. d4 {[%clk 0:02:54.6]} 3... Bg4 {[%clk 0:03:00.1]}
4. Bb5+ {[%clk 0:02:54.1]} 4... Nbd7 {[%clk 0:02:59.4]} 5. Be2 {[%clk
0:02:52.7]} 5... Bxe2 {[%clk 0:02:56.8]} 6. Qxe2 {[%clk 0:02:53.6]} 6... Nxd5
{[%clk 0:02:56.5]} 7. Nf3 {[%clk 0:02:50.8]} 7... e6 {[%clk 0:02:56.4]} 8. O-O
{[%clk 0:02:45.8]} 8... c6 {[%clk 0:02:56.4]} 9. c4 {[%clk 0:02:46.1]} 9... N5f6
{[%clk 0:02:56.2]} 10. Nc3 {[%clk 0:02:46]} 10... Be7 {[%clk 0:02:54.6]} 11. Bf4
{[%clk 0:02:43.9]} 11... O-O {[%clk 0:02:54]} 12. Rad1 {[%clk 0:02:36.7]} 12...
Re8 {[%clk 0:02:40.3]} 13. h3 {[%clk 0:02:33.7]} 13... Qa5 {[%clk 0:02:39.4]}
14. Ne5 {[%clk 0:02:27.2]} 14... Rad8 {[%clk 0:02:28.5]} 15. Qf3 {[%clk
0:02:15.5]} 15... Nf8 {[%clk 0:02:05.1]} 16. Bg5 {[%clk 0:01:57.8]} 16... Ng6
{[%clk 0:02:01]} 17. Rfe1 {[%clk 0:01:36.8]} 17... Qb4 {[%clk 0:01:30.5]} 18. h4
{[%clk 0:01:30.7]} 18... Nxe5 {[%clk 0:01:14]} 19. dxe5 {[%clk 0:01:30.7]} 19...
Nd7 {[%clk 0:01:13.5]} 20. Bxe7 {[%clk 0:01:13.4]} 20... Rxe7 {[%clk 0:01:13.8]}
21. Ne4 {[%clk 0:00:56.7]} 21... Ree8 {[%clk 0:00:53.2]} 22. Qg3 {[%clk
0:00:22]} 22... Kf8 {[%clk 0:00:44.3]} 23. Nd6 {[%clk 0:00:16.5]} 23... Re7
{[%clk 0:00:43.1]} 24. Re4 {[%clk 0:00:12.3]} 24... Qxb2 {[%clk 0:00:33.7]} 25.
h5 {[%clk 0:00:12.4]} 25... h6 {[%clk 0:00:32.9]} 26. Rg4 {[%clk 0:00:12.1]}
26... Qxe5 {[%clk 0:00:28.4]} 27. f4 {[%clk 0:00:07.3]} 27... Qc5+ {[%clk
0:00:26.7]} 28. Kh2 {[%clk 0:00:07.3]} 28... Nf6 {[%clk 0:00:24.1]} 29. Nxb7
{[%clk 0:00:04.1]} 29... Qxh5+ {[%clk 0:00:16.8]} 30. Rh4 {[%clk 0:00:01.2]}
30... Qxd1 {[%clk 0:00:17.2]} 31. Nxd8 {[%clk 0:00:01.5]} 31... Qxd8 {[%clk
0:00:17.9]} 32. f5 {[%clk 0:00:01.8]} 32... Qc7 {[%clk 0:00:17.6]} 33. Qxc7
{[%clk 0:00:01.1]} 33... Rxc7 {[%clk 0:00:17.6]} 34. fxe6 {[%clk 0:00:02]} 34...
fxe6 {[%clk 0:00:18.3]} 0-1

[Event "Early-Titled-Tuesday-Blitz-February-20-2024"]
[Site "Chess.com"]
[Date "2024.02.20"]
[Round "6"]
[White "vi_pranav"]
[Black "masnyszachistaaa"]
[Result "1-0"]
[WhiteElo "3028"]
[BlackElo "2574"]
[TimeControl "180+1"]
[EndTime "9:08:47 PST"]
[Termination "vi_pranav won on time"]

1. e4 {[%clk 0:03:00.9]} 1... e5 {[%clk 0:02:59.6]} 2. Nf3 {[%clk 0:03:01.1]}
2... Nc6 {[%clk 0:02:59.6]} 3. Bb5 {[%clk 0:02:59.4]} 3... a6 {[%clk 0:02:59.6]}
4. Ba4 {[%clk 0:02:59.7]} 4... Nf6 {[%clk 0:02:59.9]} 5. O-O {[%clk 0:03:00.1]}
5... Nxe4 {[%clk 0:03:00.2]} 6. d4 {[%clk 0:03:00]} 6... exd4 {[%clk 0:03:01.1]}
7. Re1 {[%clk 0:02:48]} 7... d5 {[%clk 0:03:01.3]} 8. Nxd4 {[%clk 0:02:46.1]}
8... Bd6 {[%clk 0:03:01.7]} 9. Nxc6 {[%clk 0:02:31.9]} 9... Bxh2+ {[%clk
0:03:00.9]} 10. Kf1 {[%clk 0:02:30.4]} 10... Qh4 {[%clk 0:03:01.8]} 11. Be3
{[%clk 0:01:26.2]} 11... O-O {[%clk 0:03:00]} 12. Nd4 {[%clk 0:01:22.2]} 12...
Bg4 {[%clk 0:02:58.5]} 13. Nf3 {[%clk 0:01:19.2]} 13... Qh5 {[%clk 0:02:58.7]}
14. Nc3 {[%clk 0:01:14.2]} 14... c6 {[%clk 0:02:30.8]} 15. Bb3 {[%clk
0:00:58.8]} 15... Rae8 {[%clk 0:02:18.9]} 16. Ke2 {[%clk 0:00:36.4]} 16... Ng5
{[%clk 0:02:03.7]} 17. Bxd5 {[%clk 0:00:29.2]} 17... cxd5 {[%clk 0:01:08.1]} 18.
Qxd5 {[%clk 0:00:30.1]} 18... Re4 {[%clk 0:00:12.5]} 19. Nxe4 {[%clk 0:00:13.5]}
19... Bxf3+ {[%clk 0:00:12.4]} 20. gxf3 {[%clk 0:00:12.9]} 20... Qxf3+ {[%clk
0:00:13.3]} 21. Kd3 {[%clk 0:00:13.4]} 21... Nxe4 {[%clk 0:00:13.2]} 22. c4
{[%clk 0:00:13.6]} 22... Bc7 {[%clk 0:00:10.4]} 23. Kc2 {[%clk 0:00:12.1]} 23...
Rd8 {[%clk 0:00:06.3]} 24. Qxb7 {[%clk 0:00:07.1]} 24... Be5 {[%clk 0:00:04.4]}
25. Rad1 {[%clk 0:00:06.3]} 25... Rxd1 {[%clk 0:00:03]} 26. Qa8+ {[%clk
0:00:05.7]} 1-0

[Event "Early-Titled-Tuesday-Blitz-February-20-2024"]
[Site "Chess.com"]
[Date "2024.02.20"]
[Round "6"]
[White "Sattarov_Bobur"]
[Black "GOGIEFF"]
[Result "0-1"]
[WhiteElo "2804"]
[BlackElo "3025"]
[TimeControl "180+1"]
[EndTime "9:08:49 PST"]
[Termination "GOGIEFF won on time"]

1. e4 {[%clk 0:03:00.9]} 1... c5 {[%clk 0:02:59.4]} 2. Nc3 {[%clk 0:02:58]} 2...
d6 {[%clk 0:02:59.1]} 3. Nf3 {[%clk 0:02:57.4]} 3... Nf6 {[%clk 0:02:58.9]} 4.
e5 {[%clk 0:02:57.7]} 4... dxe5 {[%clk 0:02:58.5]} 5. Nxe5 {[%clk 0:02:58.6]}
5... a6 {[%clk 0:02:55]} 6. g3 {[%clk 0:02:58.4]} 6... Qc7 {[%clk 0:02:52.3]} 7.
d4 {[%clk 0:02:58.5]} 7... cxd4 {[%clk 0:02:51.5]} 8. Qxd4 {[%clk 0:02:59.4]}
8... Nc6 {[%clk 0:02:41.9]} 9. Nxc6 {[%clk 0:02:58.8]} 9... Qxc6 {[%clk
0:02:42.4]} 10. Bg5 {[%clk 0:02:59.1]} 10... h6 {[%clk 0:02:09.5]} 11. O-O-O
{[%clk 0:02:49.4]} 11... Be6 {[%clk 0:02:09.5]} 12. Bf4 {[%clk 0:02:20.7]} 12...
g5 {[%clk 0:01:52.1]} 13. Be5 {[%clk 0:02:20.6]} 13... Bg7 {[%clk 0:01:52.4]}
14. Rg1 {[%clk 0:02:20.5]} 14... O-O {[%clk 0:01:44.3]} 15. Bg2 {[%clk
0:02:20.5]} 15... Qc8 {[%clk 0:01:44.5]} 16. Qb4 {[%clk 0:02:18.7]} 16... b5
{[%clk 0:01:34.4]} 17. Bxa8 {[%clk 0:02:15.7]} 17... Qxa8 {[%clk 0:01:35.3]} 18.
Qxe7 {[%clk 0:02:12.5]} 18... Re8 {[%clk 0:01:28]} 19. Qb4 {[%clk 0:02:06.2]}
19... Bf8 {[%clk 0:01:22.8]} 20. Bd6 {[%clk 0:01:54.8]} 20... Bg7 {[%clk
0:01:23]} 21. h4 {[%clk 0:01:52.5]} 21... g4 {[%clk 0:01:11.2]} 22. Rge1 {[%clk
0:01:47.4]} 22... Rc8 {[%clk 0:01:11]} 23. Be5 {[%clk 0:01:38.8]} 23... Qf3
{[%clk 0:00:49.9]} 24. Qe7 {[%clk 0:01:10.8]} 24... Qxf2 {[%clk 0:00:36.9]} 25.
Kb1 {[%clk 0:01:02.4]} 25... Nd5 {[%clk 0:00:25.7]} 26. Nxd5 {[%clk 0:00:29.6]}
26... Qxc2+ {[%clk 0:00:24.9]} 27. Ka1 {[%clk 0:00:27.9]} 27... Bxe5 {[%clk
0:00:25.2]} 28. Qa3 {[%clk 0:00:16.9]} 28... Bxd5 {[%clk 0:00:22.2]} 29. Rb1
{[%clk 0:00:11.1]} 29... Bg7 {[%clk 0:00:20.5]} 30. Qe3 {[%clk 0:00:04.1]} 30...
Qa4 {[%clk 0:00:18.6]} 31. a3 {[%clk 0:00:02.4]} 31... Qc4 {[%clk 0:00:18.5]}
0-1